bitfinex/quotes_SOLUSD_20251202
["timestamp","ask_amount","ask_price","bid_price","bid_amount"]
[1764695306816,0.71,139.58,139.53,14.45112442]
[1764695307019,14.44844448,139.59,139.54,0.67]
[1764695307223,33.06803685,139.59,139.54,0.67]
[1764695307417,7.28440575,139.58,139.54,0.67]
[1764695307621,7.99440575,139.58,139.52,59.32440575]
[1764695307817,7.99440575,139.57,139.52,44.0]
[1764695308025,7.99440575,139.57,139.52,51.83693376]
[1764695308322,7.28440575,139.58,139.53,0.67]
[1764695308523,33.06803685,139.59,139.53,7.95440575]
[1764695308718,32.35803685,139.59,139.53,7.95440575]
[1764695308945,33.06803685,139.59,139.54,0.67]
[1764695309755,8.04,139.58,139.54,0.67]
[1764695309924,16.03440575,139.58,139.54,0.67]
[1764695311253,7.28440575,139.55,139.51,0.67]
[1764695311471,7.16537689,139.56,139.51,7.95440575]
[1764695311756,8.04,139.57,139.53,7.28440575]
[1764695311928,8.04,139.57,139.52,0.67]
[1764695312127,8.04,139.57,139.53,7.28440575]
[1764695312349,8.04,139.58,139.53,7.28440575]
[1764695312528,8.04,139.58,139.54,0.67]
[1764695312735,16.03440575,139.59,139.54,0.67]
[1764695313266,7.16435019,139.58,139.54,0.67]
[1764695313435,15.10875594,139.58,139.54,0.67]
[1764695314732,7.82435019,139.58,139.54,0.67]
[1764695314934,15.10875594,139.58,139.54,0.67]
[1764695315645,7.28440575,139.57,139.54,0.67]
[1764695316157,7.82435019,139.58,139.54,0.67]
[1764695316355,7.82435019,139.58,139.54,7.836342]
[1764695316656,7.82435019,139.58,139.54,15.12074775]
[1764695316956,7.82435019,139.58,139.54,7.95440575]
[1764695317156,7.82435019,139.58,139.54,0.67]
[1764695318946,7.16435019,139.58,139.54,15.12074297]
[1764695319256,15.86435019,139.58,139.54,15.12074297]
[1764695319660,15.86435019,139.58,139.54,7.83633722]
[1764695320466,15.86435019,139.58,139.54,15.12074297]
[1764695320764,15.86435019,139.58,139.54,7.83633722]
[1764695320965,15.86435019,139.58,139.54,15.12074297]
[1764695321147,15.86435019,139.58,139.54,15.11074297]
[1764695321960,7.16229766,139.62,139.57,7.28440575]
[1764695322136,8.71,139.64,139.61,7.28440575]
[1764695322336,8.71,139.64,139.59,3.10549826]
[1764695322536,0.67,139.63,139.59,3.10549826]
[1764695322848,0.67,139.63,139.59,3.76549826]
[1764695323169,0.67,139.63,139.61,3.10549826]
[1764695323342,0.67,139.63,139.6,3.10549826]
[1764695324645,0.67,139.63,139.59,7.82381631]
[1764695324863,7.8317981,139.63,139.59,3.76549826]
[1764695325236,7.8317981,139.63,139.59,10.92932758]
[1764695325970,0.67,139.62,139.57,3.10549826]
[1764695326198,3.77549826,139.62,139.56,3.76549826]
[1764695326666,0.67,139.61,139.56,3.76549826]
[1764695326850,7.83308705,139.61,139.57,3.10549826]
[1764695327169,7.83308705,139.61,139.57,3.76549826]
[1764695327867,7.16308705,139.61,139.58,3.76549826]
[1764695328068,8.04,139.63,139.6,3.10549826]
[1764695328441,8.71,139.63,139.6,3.10549826]
[1764695328752,7.16281068,139.61,139.56,3.10549826]
[1764695328959,25.06983739,139.61,139.56,3.76549826]
[1764695329142,0.67,139.6,139.56,3.76549826]
[1764695329464,3.77549826,139.6,139.54,3.10549826]
[1764695329665,8.04,139.59,139.56,3.10549826]
[1764695330038,8.04,139.59,139.56,3.76549826]
[1764695330245,8.71,139.59,139.56,3.10549826]
[1764695330760,7.16435019,139.58,139.55,3.10549826]
[1764695330970,7.16435019,139.58,139.55,3.76549826]
[1764695331159,25.74522567,139.58,139.53,0.66]
[1764695331369,0.67,139.57,139.53,3.76549826]
[1764695331673,0.67,139.58,139.54,3.10549826]
[1764695331846,0.67,139.58,139.54,0.66]
[1764695332045,0.67,139.58,139.54,3.76549826]
[1764695332678,0.67,139.58,139.53,3.10549826]
[1764695332993,7.1648635,139.57,139.52,10.93281332]
[1764695333485,0.67,139.56,139.51,3.10549826]
[1764695333687,8.71,139.56,139.51,3.10549826]
[1764695333991,0.67,139.55,139.51,3.76549826]
[1764695334871,0.67,139.55,139.52,3.10549826]
[1764695335077,8.71,139.58,139.54,3.10549826]
[1764695335397,15.87480162,139.58,139.54,3.10549826]
[1764695335577,0.67,139.57,139.54,3.10549826]
[1764695336083,8.04,139.58,139.54,3.76549826]
[1764695336286,8.71,139.58,139.54,0.66]
[1764695337492,15.87446011,139.58,139.54,10.93182599]
[1764695337999,15.87446011,139.58,139.54,7.82632773]
[1764695338390,0.67,139.57,139.52,3.10549826]
[1764695338592,0.67,139.57,139.52,0.66]
[1764695338772,0.67,139.57,139.52,10.93265075]
[1764695339275,0.67,139.57,139.53,0.66]
[1764695339781,7.83519411,139.57,139.53,7.82681172]
[1764695340176,7.16455179,139.58,139.54,0.66]
[1764695340376,15.20455179,139.58,139.54,3.76549826]
[1764695340587,15.87455179,139.58,139.54,0.66]
[1764695340803,15.20455179,139.58,139.53,28.18960375]
[1764695340992,7.1640625,139.59,139.55,0.66]
[1764695341396,7.8340625,139.59,139.55,0.66]
[1764695341698,7.8340625,139.59,139.55,7.82584459]
[1764695342300,7.8340625,139.59,139.55,7.16584459]
[1764695342493,7.8340625,139.59,139.56,0.66]
[1764695343598,3.77549826,139.65,139.58,3.10549826]
[1764695343903,3.77549826,139.65,139.6,3.10549826]
[1764695344310,0.67,139.64,139.6,0.66]
[1764695344512,3.77549826,139.64,139.6,0.66]
[1764695344693,0.67,139.64,139.6,0.66]
[1764695345092,3.77549826,139.63,139.57,3.76549826]
[1764695345291,3.77549826,139.63,139.58,3.10549826]
[1764695345515,0.67,139.63,139.58,3.76549826]
[1764695345804,0.67,139.63,139.59,10.92933521]
[1764695346410,10.93746288,139.63,139.59,0.66]
[1764695346910,28.84192467,139.63,139.59,0.66]
[1764695347207,0.67,139.62,139.55,8.04]
[1764695347396,3.10549826,139.61,139.55,7.16576566]
[1764695347596,3.10549826,139.59,139.55,0.66]
[1764695347913,3.10549826,139.57,139.54,0.66]
[1764695348204,3.10549826,139.56,139.52,0.66]
[1764695348915,3.77549826,139.57,139.52,0.66]
[1764695349209,10.94087182,139.57,139.52,0.66]
[1764695349712,10.94087182,139.57,139.52,7.8273586]
[1764695350309,7.83537356,139.57,139.52,7.8273586]
[1764695350508,10.94087182,139.57,139.53,0.66]
[1764695352716,3.10549826,139.56,139.53,0.66]
[1764695353308,3.10549826,139.56,139.53,7.82691723]
[1764695353614,3.10549826,139.6,139.53,10.93241549]
[1764695353812,3.10549826,139.59,139.54,0.71]
[1764695354506,3.78549826,139.59,139.54,0.71]
[1764695355013,10.94961042,139.59,139.55,7.16589036]
[1764695355216,10.94961042,139.59,139.55,7.87589036]
[1764695355417,10.94961042,139.59,139.55,0.71]
[1764695355600,10.94961042,139.59,139.52,8.02]
[1764695355601,3.10549826,139.57,139.52,8.02]
[1764695355802,3.10549826,139.56,139.52,8.73]
[1764695356003,3.10549826,139.58,139.53,0.71]
[1764695356390,5.53658449,139.58,139.53,0.71]
[1764695356589,4.85658449,139.56,139.51,7.87772506]
[1764695356794,4.85658449,139.55,139.51,7.87772506]
[1764695357295,4.85658449,139.6,139.51,7.87772506]
[1764695357296,5.53658449,139.6,139.53,4.85658449]
[1764695357511,5.53658449,139.6,139.54,0.71]
[1764695357686,4.85658449,139.58,139.54,0.71]
[1764695358091,5.53658449,139.59,139.54,0.71]
[1764695358692,12.70050046,139.59,139.54,7.8759348]
[1764695358891,0.68,139.59,139.54,12.73251929]
[1764695359092,15.18365913,139.6,139.55,0.71]
[1764695359626,0.68,139.6,139.55,5.56658449]
[1764695359922,7.84333625,139.6,139.56,0.71]
[1764695361619,4.85658449,139.58,139.54,7.16620405]
[1764695361917,5.53658449,139.59,139.54,7.16620405]
[1764695362216,0.68,139.58,139.54,7.87620405]
[1764695362410,0.68,139.58,139.55,4.85658449]
[1764695362805,0.68,139.58,139.54,7.87620405]
[1764695363012,0.68,139.58,139.55,4.85658449]
[1764695363188,25.06999234,139.61,139.55,0.71]
[1764695363393,4.85658449,139.6,139.55,5.56658449]
[1764695363589,7.16383695,139.59,139.55,12.73224272]
[1764695363923,7.84383695,139.59,139.55,12.73224272]
[1764695364615,7.84383695,139.59,139.55,5.56658449]
[1764695365119,7.84383695,139.59,139.55,12.73236724]
[1764695366915,7.84383695,139.59,139.55,7.87578275]
[1764695367122,7.84383695,139.59,139.55,12.73236724]
[1764695367618,0.68,139.58,139.54,5.56658449]
[1764695368216,0.68,139.6,139.56,4.85658449]
[1764695368523,0.68,139.6,139.55,5.56658449]
[1764695369615,7.16383695,139.59,139.53,7.87655023]
[1764695369814,7.16383695,139.59,139.54,5.56658449]
[1764695370025,7.84383695,139.59,139.54,5.56658449]
[1764695370233,0.68,139.58,139.54,5.56658449]
[1764695371027,12.87658449,139.57,139.52,0.71]
[1764695371235,0.68,139.56,139.5,0.71]
[1764695371431,5.53658449,139.56,139.51,4.85658449]
[1764695371635,25.08061626,139.55,139.52,4.85658449]
[1764695372006,0.68,139.54,139.49,0.2]
[1764695372237,0.68,139.54,139.49,5.05658449]
[1764695372411,5.53658449,139.54,139.49,5.76658449]
[1764695372736,8.02,139.53,139.49,5.76658449]
[1764695372918,8.7,139.53,139.49,0.91]
[1764695373229,8.02,139.53,139.49,0.91]
[1764695373430,5.57658449,139.52,139.49,0.2]
[1764695373607,0.72,139.52,139.49,0.2]
[1764695373934,0.72,139.51,139.49,0.2]
[1764695375332,5.57658449,139.51,139.49,0.2]
[1764695375826,7.88845878,139.5,139.49,0.2]
[1764695376408,15.90845878,139.5,139.49,0.2]
[1764695377032,20.76504327,139.5,139.49,0.2]
[1764695377222,15.90845878,139.5,139.49,0.2]
[1764695377414,15.18845878,139.5,139.49,0.2]
[1764695377806,15.90845878,139.5,139.49,0.2]
[1764695378417,4.85658449,139.51,139.49,0.2]
[1764695378418,8.02,139.51,139.49,0.2]
[1764695378633,20.76413638,139.52,139.49,0.2]
[1764695378825,15.90755189,139.52,139.49,0.2]
[1764695379134,15.90755189,139.52,139.49,0.9]
[1764695379135,15.18755189,139.52,139.49,0.9]
[1764695380730,5.57658449,139.51,139.49,0.2]
[1764695381278,5.57658449,139.5,139.49,0.2]
[1764695382134,12.74504327,139.5,139.49,0.2]
[1764695382443,7.88845878,139.5,139.49,0.2]
[1764695382927,12.74504327,139.5,139.49,0.2]
[1764695383243,7.16845878,139.5,139.49,0.2]
[1764695383940,15.20845878,139.5,139.49,0.2]
[1764695384138,15.87845878,139.5,139.49,0.2]
[1764695385342,20.73504327,139.5,139.49,0.2]
[1764695386259,15.87845878,139.5,139.49,0.2]
[1764695386614,20.73504327,139.5,139.49,0.2]
[1764695386941,20.73504327,139.5,139.49,1e-08]
[1764695390756,0.67,139.49,139.41,0.2]
[1764695391123,4.85658449,139.42,139.41,0.2]
[1764695391323,12.89658449,139.42,139.41,0.2]
[1764695391536,13.56658449,139.42,139.41,0.2]
[1764695392950,20.73915657,139.42,139.41,0.2]
[1764695397732,4.85658449,139.42,139.41,0.2]
[1764695397935,7.16794495,139.51,139.41,8.06308657]
[1764695398151,4.85658449,139.46,139.41,12.91967106]
[1764695398450,12.89658449,139.46,139.42,0.69]
[1764695398648,8.04,139.46,139.42,0.69]
[1764695399026,8.04,139.46,139.43,7.17205766]
[1764695399458,8.04,139.46,139.44,0.69]
[1764695399651,12.89658449,139.46,139.44,0.69]
[1764695399852,20.0671304,139.46,139.41,0.2]
[1764695400055,4.85658449,139.43,139.41,0.2]
[1764695400359,4.85658449,139.42,139.41,0.2]
[1764695400549,5.52658449,139.42,139.41,0.2]
[1764695401161,12.69915657,139.42,139.41,0.2]
[1764695402445,12.69915657,139.42,139.41,1e-08]
[1764695404661,20.06915657,139.42,139.41,1e-08]
[1764695404838,15.21257208,139.42,139.41,1e-08]
[1764695405039,8.04,139.42,139.41,1e-08]
[1764695405638,15.21257208,139.42,139.41,1e-08]
[1764695406341,30.35161229,139.46,139.41,0.69000001]
[1764695406540,8.04,139.45,139.41,0.69000001]
[1764695406736,27.63615688,139.45,139.41,0.69000001]
[1764695406943,13.09473513,139.44,139.41,1e-08]
[1764695407576,19.59679279,139.43,139.41,1e-08]
[1764695407744,8.04,139.42,139.41,1e-08]
[1764695408895,7.17000071,139.47,139.41,13.11473514]
[1764695409047,8.04,139.46,139.43,12.42473513]
[1764695409245,8.04,139.46,139.42,0.69]
[1764695409664,7.17102904,139.45,139.42,0.69]
[1764695410166,7.17102904,139.45,139.41,1e-08]
[1764695410167,12.42473513,139.43,139.41,1e-08]
[1764695410379,20.46473513,139.42,139.41,1e-08]
[1764695410751,21.13473513,139.42,139.41,1e-08]
[1764695411557,28.30730721,139.42,139.41,1e-08]
[1764695413774,7.17257208,139.42,139.41,1e-08]
[1764695413942,15.21257208,139.42,139.41,1e-08]
[1764695414345,28.29730721,139.42,139.41,1e-08]
[1764695414648,27.63730721,139.42,139.41,1e-08]
[1764695415145,28.29730721,139.42,139.41,1e-08]
[1764695415546,15.87257208,139.42,139.41,1e-08]
[1764695415752,28.29730721,139.42,139.41,1e-08]
[1764695416480,23.1760915,139.42,139.41,1e-08]
[1764695417048,22.5160915,139.42,139.41,1e-08]
[1764695417378,23.1760915,139.42,139.41,1e-08]
[1764695418471,22.5160915,139.42,139.41,1e-08]
[1764695419480,23.1760915,139.42,139.41,1e-08]
[1764695420174,15.87257208,139.42,139.41,1e-08]
[1764695420379,23.1760915,139.42,139.41,1e-08]
[1764695422179,7.17257208,139.42,139.41,1e-08]
[1764695422362,7.17257208,139.42,139.41,0.71000001]
[1764695422551,8.04,139.42,139.41,0.71000001]
[1764695422756,8.04,139.44,139.41,8.01351943]
[1764695422956,8.04,139.44,139.42,0.71]
[1764695423258,15.34351942,139.44,139.41,0.71000001]
[1764695423783,8.04,139.44,139.41,0.71000001]
[1764695424465,15.34351942,139.44,139.41,0.71000001]
[1764695424657,8.04,139.44,139.41,0.71000001]
[1764695424858,15.21159142,139.44,139.41,0.71000001]
[1764695425382,40.44396913,139.44,139.41,0.71000001]
[1764695425776,7.30351942,139.43,139.41,1e-08]
[1764695426588,7.17257208,139.42,139.41,1e-08]
[1764695426882,14.4760915,139.42,139.41,1e-08]
[1764695427081,15.1360915,139.42,139.41,1e-08]
[1764695427390,15.1360915,139.42,139.4,1e-08]
[1764695427391,0.66,139.41,139.4,1e-08]
[1764695427580,16.00351942,139.41,139.4,1e-08]
[1764695428293,15.34351942,139.41,139.4,1e-08]
[1764695428584,14.47660599,139.41,139.4,1e-08]
[1764695428788,22.51660599,139.41,139.4,1e-08]
[1764695429790,23.17660599,139.41,139.4,1e-08]
[1764695431995,29.82012541,139.41,139.39,1e-08]
[1764695432196,7.96351942,139.4,139.39,1e-08]
[1764695432774,15.13712056,139.4,139.39,1e-08]
[1764695433297,14.47712056,139.4,139.38,1e-08]
[1764695433602,8.73,139.39,139.38,1e-08]
[1764695434073,16.03351942,139.39,139.38,1e-08]
[1764695435689,23.20763521,139.39,139.38,1e-08]
[1764695437792,15.90411579,139.39,139.38,1e-08]
[1764695438001,14.47763521,139.39,139.38,1e-08]
[1764695438295,15.21411579,139.39,139.38,0.72000001]
[1764695438493,18.33088934,139.39,139.38,1e-08]
[1764695438704,18.33088934,139.39,139.38,0.72000001]
[1764695439080,18.33088934,139.39,139.38,1e-08]
[1764695439480,15.21411579,139.39,139.38,0.72000001]
[1764695439681,17.93393206,139.41,139.38,0.72000001]
[1764695439682,2.87242827,139.44,139.38,3.83677356]
[1764695439879,3.11677355,139.47,139.41,3.11677355]
[1764695440086,3.11677355,139.45,139.38,1e-08]
[1764695440295,3.11677355,139.43,139.38,1e-08]
[1764695440602,8.04,139.42,139.38,14.47588321]
[1764695440778,8.04,139.42,139.39,7.30129199]
[1764695441093,8.04,139.44,139.4,7.30129199]
[1764695441806,8.04,139.44,139.41,7.30129199]
[1764695441984,15.21188323,139.44,139.4,7.30129199]
[1764695442303,8.04,139.44,139.41,7.30129199]
[1764695442696,25.77848501,139.51,139.43,7.30129199]
[1764695443002,15.34129199,139.5,139.44,7.30129199]
[1764695443294,7.30129199,139.47,139.4,7.17344701]
[1764695443595,25.77848501,139.51,139.45,7.30129199]
[1764695443795,8.04,139.5,139.46,7.30129199]
[1764695444303,15.2086547,139.5,139.46,7.30129199]
[1764695445088,7.1686547,139.5,139.47,7.30129199]
[1764695445298,7.1686547,139.5,139.48,7.30129199]
[1764695445489,7.1686547,139.5,139.46,7.30129199]
[1764695445894,25.08980165,139.5,139.46,7.30129199]
[1764695446113,25.77980165,139.5,139.45,7.30129199]
[1764695446286,33.08109364,139.5,139.45,7.30129199]
[1764695446915,25.08980165,139.5,139.46,7.30129199]
[1764695447089,25.08980165,139.5,139.47,7.30129199]
[1764695447290,7.1686547,139.5,139.48,7.30129199]
[1764695447687,0.2,139.57,139.46,21.47710346]
[1764695448016,7.30129199,139.52,139.47,7.30129199]
[1764695448226,7.16794495,139.51,139.47,7.30129199]
[1764695448404,7.85794495,139.51,139.47,7.30129199]
[1764695448727,0.69,139.5,139.45,7.30129199]
[1764695449322,7.99129199,139.5,139.45,7.30129199]
[1764695449521,0.69,139.5,139.45,7.30129199]
[1764695450631,7.16897268,139.49,139.45,7.30129199]
[1764695450808,7.16897268,139.49,139.43,7.17205766]
[1764695450809,15.18897268,139.49,139.44,7.30129199]
[1764695450988,40.41269638,139.49,139.44,7.30129199]
[1764695451189,7.99129199,139.48,139.38,17.93609499]
[1764695451389,7.30129199,139.47,139.42,7.30129199]
[1764695451717,8.02,139.46,139.42,7.30129199]
[1764695452291,8.02,139.46,139.44,7.30129199]
[1764695452489,17.92243171,139.49,139.41,7.30129199]
[1764695452799,8.02,139.49,139.46,7.30129199]
[1764695453230,8.02,139.49,139.42,25.10400229]
[1764695453231,8.02,139.49,139.45,7.30129199]
[1764695453897,8.71,139.49,139.45,7.30129199]
[1764695454093,8.71,139.49,139.44,7.30129199]
[1764695454706,7.85948666,139.48,139.44,7.30129199]
[1764695454904,25.78320332,139.48,139.44,7.30129199]
[1764695455321,25.09320332,139.48,139.45,7.30129199]
[1764695455702,7.16948666,139.48,139.45,7.30129199]
[1764695456524,17.91925651,139.52,139.47,7.30129199]
[1764695456822,33.10780732,139.51,139.47,7.30129199]
[1764695457231,3.0,139.48,139.46,7.30129199]
[1764695458806,10.16967972,139.48,139.46,7.30129199]
[1764695459620,3.0,139.48,139.45,7.30129199]
[1764695459804,3.0,139.48,139.44,7.30129199]
[1764695460302,3.0,139.48,139.47,7.30129199]
[1764695460511,3.0,139.48,139.46,7.30129199]
[1764695460899,10.85948666,139.48,139.44,7.30129199]
[1764695461331,0.69,139.47,139.41,7.17308657]
[1764695461533,18.18958432,139.48,139.46,7.30129199]
[1764695461932,3.0,139.48,139.47,7.30129199]
[1764695462804,3.0,139.48,139.47,14.4712927]
[1764695464233,1e-08,139.48,139.47,14.4712927]
[1764695466513,1e-08,139.48,139.47,7.17000071]
[1764695466717,1e-08,139.48,139.47,10.27909105]
[1764695468228,0.2,139.57,139.47,31.31318318]
[1764695468434,0.2,139.57,139.56,3.10909034]
[1764695468625,7.3648635,139.57,139.56,3.10909034]
[1764695468818,0.89,139.57,139.55,3.10909034]
[1764695469019,0.69,139.56,139.53,3.10909034]
[1764695470147,0.69,139.56,139.54,3.10909034]
[1764695470437,0.69,139.56,139.54,7.28452584]
[1764695471038,0.2,139.57,139.55,7.28452584]
[1764695471214,0.89,139.57,139.55,7.28452584]
[1764695471413,0.2,139.57,139.56,7.28452584]
[1764695473111,0.2,139.57,139.55,7.28452584]
[1764695473519,0.2,139.57,139.56,7.28452584]
[1764695474116,0.2,139.57,139.55,7.28452584]
[1764695474520,0.2,139.57,139.56,7.28452584]
[1764695475436,0.2,139.57,139.55,7.28452584]
[1764695476021,0.2,139.57,139.56,7.28452584]
[1764695476553,0.2,139.57,139.56,14.44990273]
[1764695477338,0.2,139.57,139.56,22.46990273]
[1764695478321,0.2,139.58,139.56,27.57061612]
[1764695478637,0.2,139.58,139.57,19.55010273]
[1764695479024,0.2,139.61,139.6,12.38523923]
[1764695479230,0.2,139.61,139.6,20.40523923]
[1764695479444,0.2,139.61,139.6,8.02]
[1764695479626,0.2,139.61,139.6,20.40523923]
[1764695481833,0.2,139.61,139.6,27.56856301]
[1764695482358,0.2,139.61,139.6,19.54856301]
[1764695482520,0.2,139.61,139.6,20.40523923]
[1764695483125,0.2,139.63,139.6,20.40523923]
[1764695483440,0.1,139.8,139.62,12.38523923]
[1764695483441,0.67,139.7,139.62,12.38523923]
[1764695483636,0.67,139.7,139.69,12.38523923]
[1764695483956,0.67,139.7,139.67,12.38523923]
[1764695484132,7.82832564,139.7,139.66,12.38523923]
[1764695484560,0.67,139.69,139.66,12.38523923]
[1764695484853,0.67,139.69,139.63,7.16168599]
[1764695485043,0.67,139.69,139.66,12.38523923]
[1764695485551,0.67,139.69,139.67,12.38523923]
[1764695485739,0.67,139.69,139.66,12.38523923]
[1764695486054,7.82877527,139.69,139.67,12.38523923]
[1764695486451,0.67,139.68,139.67,12.38523923]
[1764695486756,0.67,139.68,139.66,12.38523923]
[1764695486926,0.67,139.7,139.67,12.38523923]
[1764695487126,0.1,139.72,139.69,12.38523923]
[1764695487352,0.1,139.72,139.71,12.38523923]
[1764695487741,0.1,139.72,139.71,19.542923]
[1764695488138,0.77,139.72,139.7,12.38523923]
[1764695488338,0.77,139.72,139.69,12.38523923]
[1764695488536,0.77,139.72,139.7,12.38523923]
[1764695489345,0.77,139.72,139.69,20.40523923]
[1764695489552,0.77,139.72,139.7,12.38523923]
[1764695489952,0.77,139.72,139.69,20.40523923]
[1764695490130,0.77,139.72,139.69,27.56385197]
[1764695490328,0.77,139.72,139.7,12.38523923]
[1764695490534,0.77,139.72,139.71,12.38523923]
[1764695490938,0.1,139.72,139.71,12.38523923]
[1764695492034,0.77,139.72,139.71,19.542923]
[1764695492255,0.1,139.72,139.71,12.38523923]
[1764695492463,0.1,139.72,139.71,19.542923]
[1764695492660,0.77,139.72,139.7,12.38523923]
[1764695492863,0.1,139.72,139.71,12.38523923]
[1764695494063,0.1,139.72,139.71,19.542923]
[1764695495154,0.1,139.72,139.7,27.543376]
[1764695495659,0.1,139.72,139.71,12.38523923]
[1764695496165,0.1,139.72,139.71,19.542923]
[1764695498063,0.77,139.72,139.67,17.89899423]
[1764695498250,0.77,139.72,139.69,12.38523923]
[1764695499468,0.77,139.72,139.7,12.38523923]
[1764695500065,7.15768377,139.71,139.68,12.38523923]
[1764695500240,19.542923,139.71,139.66,12.38523923]
[1764695500442,0.67,139.7,139.66,20.38523923]
[1764695500643,0.67,139.7,139.67,12.38523923]
[1764695500860,0.67,139.7,139.66,20.38523923]
[1764695501259,0.67,139.7,139.66,12.38523923]
[1764695501571,0.67,139.7,139.67,12.38523923]
[1764695502670,0.67,139.7,139.65,19.54584665]
[1764695502671,20.21353057,139.7,139.65,19.54584665]
[1764695503163,0.7,139.69,139.65,19.54584665]
[1764695503670,0.7,139.69,139.65,7.16060742]
[1764695503864,13.08523923,139.69,139.65,8.80994492]
[1764695504073,13.08523923,139.69,139.64,8.80994492]
[1764695504364,19.54548554,139.66,139.61,12.38523923]
[1764695504569,12.38523923,139.65,139.59,12.38523923]
[1764695504746,12.38523923,139.64,139.6,7.16332378]
[1764695504949,0.7,139.64,139.59,19.5489286]
[1764695505273,0.7,139.63,139.6,8.80994492]
[1764695505644,0.7,139.63,139.6,21.19518415]
[1764695505965,0.7,139.63,139.62,8.80994492]
[1764695506269,0.7,139.63,139.6,21.19518415]
[1764695506567,0.7,139.65,139.62,8.80994492]
[1764695507482,0.7,139.65,139.62,21.19518415]
[1764695507977,0.7,139.65,139.64,8.80994492]
[1764695508953,0.7,139.68,139.64,28.35645599]
[1764695509162,0.7,139.68,139.66,8.80994492]
[1764695509844,12.38523923,139.67,139.64,8.80994492]
[1764695510351,0.7,139.66,139.64,8.80994492]
[1764695510978,0.7,139.66,139.63,7.16172899]
[1764695512376,0.7,139.66,139.62,12.38523923]
[1764695513175,7.86027862,139.66,139.62,19.54742107]
[1764695513554,0.7,139.65,139.62,19.54742107]
[1764695513761,0.7,139.65,139.62,7.16218184]
[1764695513971,0.7,139.65,139.62,19.54742107]
[1764695514864,0.7,139.65,139.64,12.38523923]
[1764695515881,0.7,139.65,139.64,19.54651107]
[1764695516782,0.7,139.67,139.64,19.54651107]
[1764695517083,7.15936027,139.68,139.64,19.54651107]
[1764695517285,0.7,139.67,139.64,19.54651107]
[1764695517772,0.7,139.67,139.62,17.90574416]
[1764695517773,0.7,139.67,139.63,19.54688788]
[1764695517969,7.85973803,139.67,139.63,19.54688788]
[1764695518170,7.85973803,139.67,139.6,17.90793362]
[1764695518373,13.08523923,139.66,139.61,12.38523923]
[1764695518883,0.7,139.65,139.61,12.38523923]
[1764695519085,13.08523923,139.65,139.59,41.59999603]
[1764695519268,20.2460872,139.65,139.59,27.54896951]
[1764695519467,0.7,139.64,139.59,27.54896951]
[1764695519981,0.7,139.64,139.6,12.38523923]
[1764695520183,0.7,139.64,139.61,12.38523923]
[1764695520387,0.7,139.66,139.63,12.38523923]
[1764695520689,0.7,139.65,139.62,12.38523923]
[1764695521481,12.38523923,139.63,139.54,35.83128733]
[1764695521788,20.38523923,139.64,139.59,12.38523923]
[1764695521985,0.7,139.63,139.61,12.38523923]
[1764695522175,0.7,139.63,139.6,12.38523923]
[1764695523480,0.7,139.63,139.62,12.38523923]
[1764695524284,8.7,139.66,139.62,12.38523923]
[1764695524482,0.7,139.65,139.59,22.0253338]
[1764695524678,0.7,139.65,139.61,12.38523923]
[1764695524881,12.38523923,139.64,139.58,12.38523923]
[1764695525398,0.7,139.63,139.59,12.38523923]
[1764695525596,7.86188278,139.63,139.59,19.54896057]
[1764695526095,0.7,139.62,139.59,19.54896057]
[1764695526593,0.7,139.64,139.61,12.38523923]
[1764695526791,0.7,139.65,139.62,12.38523923]
[1764695526992,0.7,139.65,139.61,12.38523923]
[1764695527390,0.7,139.65,139.59,46.68093136]
[1764695527687,7.16127184,139.64,139.59,19.54896057]
[1764695527887,7.16127184,139.64,139.6,12.38523923]
[1764695528093,0.7,139.63,139.59,19.54896057]
[1764695528401,0.7,139.63,139.59,7.16372134]
[1764695528599,0.7,139.63,139.59,19.54896057]
[1764695529094,12.38523923,139.6,139.54,12.38523923]
[1764695529292,12.38523923,139.59,139.54,20.97866525]
[1764695529479,12.38523923,139.59,139.54,12.38523923]